bitfinex-derivatives/quotes_SOLF0:USTF0_20250125
["timestamp","ask_amount","ask_price","bid_price","bid_amount"]
[1737792023093,1.3074,247.06,247.0,4.07683786]
[1737792029794,4.5374,247.06,247.0,4.07683786]
[1737792031992,4.5374,247.06,247.01,4.0489]
[1737792033499,7.7674,247.06,247.01,4.0489]
[1737792036608,4.0485,247.04,247.0,0.02773786]
[1737792036800,7.7674,247.06,246.89,9.85414248]
[1737792037106,1.4037,247.03,246.89,9.85414248]
[1737792037706,4.0493,246.99,246.92,4.0503]
[1737792037905,1.4037,247.03,246.85,2.56]
[1737792038201,0.02643672,246.98,246.96,4.0497]
[1737792046117,4.76643672,246.98,246.96,4.0497]
[1737792046714,8.22643672,246.98,246.95,4.0498]
[1737792046914,8.22643672,246.98,246.93,0.03003626]
[1737792047115,11.75643672,246.98,246.93,0.03003626]
[1737792047415,11.75643672,246.98,246.95,4.0499]
[1737792048722,11.75643672,246.98,246.96,4.0497]
[1737792050824,14.98643672,246.98,246.96,4.0497]
[1737792051520,18.14643672,246.98,246.96,4.0497]
[1737792053322,18.14643672,246.98,246.93,0.03003626]
[1737792053520,18.14643672,246.98,246.97,4.0496]
[1737792058127,18.14643672,246.98,246.97,10.09051879]
[1737792058830,14.68643672,246.98,246.97,10.09051879]
[1737792066039,11.15643672,246.98,246.97,10.09051879]
[1737792069841,7.92643672,246.98,246.97,10.09051879]
[1737792070040,3.18643672,246.98,246.97,10.09051879]
[1737792076745,3.18643672,246.98,246.97,10.83033533]
[1737792077445,3.18643672,246.98,246.97,10.09051879]
[1737792077944,3.18643672,246.98,246.97,10.83033308]
[1737792078345,3.18643672,246.98,246.97,10.83035004]
[1737792078647,0.02643672,246.98,246.97,10.83035004]
[1737792079149,18.42,246.99,246.98,4.0495]
[1737792079342,13.51,246.99,246.98,4.78933125]
[1737792079544,6.42,246.99,246.98,4.78933125]
[1737792079744,1.3987,247.11,247.06,4.0481]
[1737792080043,6.04091879,247.15,247.08,6.04091879]
[1737792080345,0.02941161,247.14,247.09,0.0272558]
[1737792080746,3.86,247.13,247.09,0.0272558]
[1737792080947,8.29,247.13,247.1,6.04091879]
[1737792084448,8.29,247.13,247.09,0.0272558]
[1737792086346,6.04091879,247.11,247.0,6.04091879]
[1737792086649,6.04091879,247.07,247.0,6.04091879]
[1737792087452,0.02597919,247.06,247.01,0.03111508]
[1737792092861,5.57597919,247.06,247.01,0.03111508]
[1737792096761,10.20597919,247.06,247.01,0.03111508]
[1737792098256,13.43597919,247.06,247.04,6.04091879]
[1737792099060,17.29597919,247.06,247.04,10.08941879]
[1737792103770,17.29597919,247.06,247.04,6.04091879]
[1737792104071,17.29597919,247.06,247.05,4.0483]
[1737792106570,4.43,247.13,247.04,6.04091879]
[1737792106768,4.43,247.13,247.11,10.08821879]
[1737792107472,2.693,247.2,247.12,4.0471]
[1737792107771,0.0299342,247.18,247.14,6.07135264]
[1737792108671,4.0399342,247.18,247.14,6.07135264]
[1737792108971,7.2699342,247.18,247.14,6.07135264]
[1737792111672,7.2699342,247.18,247.14,0.03043385]
[1737792111975,7.2699342,247.18,247.16,6.04091879]
[1737792112171,3.23,247.18,247.16,6.04091879]
[1737792112370,2.6485,247.3,247.17,6.77865048]
[1737792112566,3.59,247.3,247.27,6.04091879]
[1737792113174,3.59,247.3,247.29,6.04091879]
[1737792113675,3.59,247.3,247.27,0.02662509]
[1737792113676,3.59,247.3,247.27,6.06754388]
[1737792121679,7.6342,247.3,247.27,6.06754388]
[1737792122879,7.6342,247.3,247.27,0.02662509]
[1737792125885,10.8642,247.3,247.27,0.02662509]
[1737792126384,6.04091879,247.29,247.19,6.04091879]
[1737792126584,6.04091879,247.26,247.19,8.60091879]
[1737792127484,6.04091879,247.26,247.2,0.02618221]
[1737792127485,0.02651007,247.25,247.2,0.02618221]
[1737792128186,4.07151007,247.25,247.2,0.02618221]
[1737792128487,0.02651007,247.25,247.21,6.04091879]
[1737792128786,0.02651007,247.25,247.23,6.04091879]
[1737792130793,6.65651007,247.25,247.23,6.04091879]
[1737792131090,11.72651007,247.25,247.23,6.04091879]
[1737792148098,16.60651007,247.25,247.23,6.04091879]
[1737792149399,16.60651007,247.25,247.2,0.02618221]
[1737792149400,20.65151007,247.25,247.22,2.56]
[1737792150901,16.60651007,247.25,247.22,2.56]
[1737792153304,19.83651007,247.25,247.22,2.56]
[1737792154204,19.83651007,247.25,247.23,6.04091879]
[1737792166225,4.0455,247.22,247.2,0.02618221]
[1737792166419,9.29742886,247.25,247.2,0.02618221]
[1737792167617,18.39742886,247.25,247.2,0.02618221]
[1737792167920,21.62742886,247.25,247.2,0.02618221]
[1737792168122,4.0457,247.21,247.2,0.02618221]
[1737792168424,18.39742886,247.25,247.2,0.02618221]
[1737792168820,22.88742886,247.25,247.2,0.02618221]
[1737792169018,4.0454,247.23,247.2,0.02618221]
[1737792169527,7.2754,247.23,247.2,0.02618221]
[1737792170525,3.23,247.23,247.2,0.02618221]
[1737792171817,3.23,247.23,247.21,6.04091879]
[1737792178421,3.23,247.23,247.2,0.02618221]
[1737792178422,4.0456,247.22,247.2,0.02618221]
[1737792181330,10.08621879,247.24,247.2,0.02618221]
[1737792181633,4.0453,247.24,247.2,0.02618221]
[1737792181831,7.2753,247.24,247.2,0.02618221]
[1737792182333,3.23,247.24,247.21,6.04091879]
[1737792182828,3.23,247.24,247.23,6.04091879]
[1737792183033,16.84651007,247.25,247.23,6.04091879]
[1737792184134,16.84651007,247.25,247.23,10.08621879]
[1737792185032,16.84651007,247.25,247.23,6.04091879]
[1737792187939,16.84651007,247.25,247.23,8.60091879]
[1737792191643,16.84651007,247.25,247.23,6.04091879]
[1737792192639,20.89161007,247.25,247.23,6.04091879]
[1737792193237,4.0454,247.23,247.2,0.02618221]
[1737792193433,9.12651007,247.25,247.2,0.02618221]
[1737792194144,4.0457,247.21,247.2,0.02618221]
[1737792196039,8.7,247.22,247.2,0.02618221]
[1737792197045,12.7456,247.22,247.2,0.02618221]
[1737792197248,8.7,247.22,247.2,0.02618221]
[1737792197943,12.66,247.22,247.2,0.02618221]
[1737792198344,15.89,247.22,247.2,0.02618221]
[1737792200045,15.89,247.22,247.21,6.04091879]
[1737792207552,10.42,247.22,247.21,6.04091879]
[1737792211051,6.04091879,247.39,247.21,6.04091879]
[1737792211353,10.02451879,247.41,247.33,6.04091879]
[1737792211949,6.04091879,247.39,247.31,6.04091879]
[1737792212246,54.15397239,247.36,247.31,6.06940283]
[1737792212448,68.42397239,247.36,247.31,6.06940283]
[1737792212757,72.46727239,247.36,247.31,6.06940283]
[1737792213661,4.0437,247.34,247.31,0.02848404]
[1737792213858,6.04091879,247.35,247.31,0.02848404]
[1737792214559,4.0438,247.33,247.31,0.02848404]
[1737792215259,4.0442,247.3,247.25,6.04091879]
[1737792215459,4.0442,247.3,247.23,6.04091879]
[1737792215958,4.0447,247.27,247.23,6.04091879]
[1737792216458,4.07183835,247.27,247.23,6.06998718]
[1737792216761,0.02713835,247.27,247.23,6.06998718]
[1737792217656,0.02713835,247.27,247.25,6.04091879]
[1737792230768,3.33713835,247.27,247.25,6.04091879]
[1737792240674,6.56713835,247.27,247.25,6.04091879]
[1737792243579,9.79713835,247.27,247.25,6.04091879]
[1737792243782,14.25713835,247.27,247.25,6.04091879]
[1737792263591,14.25713835,247.27,247.25,10.08591879]
[1737792264091,14.25713835,247.27,247.25,6.04091879]
[1737792264497,14.25713835,247.27,247.26,0.73733801]
[1737792264791,7.71713835,247.27,247.25,6.04091879]
[1737792265097,7.71713835,247.27,247.26,4.0449]
[1737792265296,7.71713835,247.27,247.26,4.78221724]
[1737792266397,7.71713835,247.27,247.26,4.0449]
[1737792267499,7.71713835,247.27,247.25,6.04091879]
[1737792270199,7.71713835,247.27,247.26,0.73721781]
[1737792270403,0.02713835,247.27,247.26,0.73721781]
[1737792271101,0.02713835,247.27,247.26,4.78211781]
[1737792272093,13.49091325,247.28,247.26,4.78211781]
[1737792272302,13.49091325,247.28,247.27,6.04091879]
[1737792274207,0.02794693,247.3,247.27,6.04091879]
[1737792274402,0.02794693,247.3,247.29,6.04091879]
[1737792278409,0.02794693,247.3,247.25,6.04091879]
[1737792279910,0.02794693,247.3,247.27,6.04091879]
[1737792280911,0.02794693,247.3,247.29,6.04091879]
[1737792287117,12.38,247.32,247.29,6.04091879]
[1737792296124,16.4239,247.32,247.29,6.04091879]
[1737792296921,12.38,247.32,247.29,6.04091879]
[1737792299527,12.38,247.32,247.31,6.04091879]
[1737792299721,1.87,247.32,247.31,6.04091879]
[1737792301724,5.9139,247.32,247.28,0.02691763]
[1737792302728,1.87,247.32,247.28,0.02691763]
[1737792304324,5.914,247.32,247.28,0.02691763]
[1737792305327,1.87,247.32,247.29,6.04091879]
[1737792315736,1.3078,247.36,247.29,6.04091879]
[1737792317242,11.1578,247.36,247.29,6.04091879]
[1737792319944,9.85,247.36,247.31,6.04091879]
[1737792320440,9.8799918,247.36,247.31,6.04091879]
[1737792320840,9.8799918,247.36,247.31,10.08491879]
[1737792323550,9.8799918,247.36,247.33,6.04091879]
[1737792323742,9.8799918,247.36,247.33,10.08461879]
[1737792324148,9.8799918,247.36,247.33,6.04091879]
[1737792325455,9.8799918,247.36,247.35,6.04091879]
[1737792325753,49.98372789,247.46,247.35,8.60091879]
[1737792325943,49.98372789,247.46,247.42,6.04091879]
[1737792326951,9.28012127,247.46,247.44,6.04091879]
[1737792330150,6.04091879,247.59,247.44,6.04091879]
[1737792330452,4.0402,247.55,247.51,6.04091879]
[1737792331054,2.6453,247.61,247.53,6.04091879]
[1737792331253,2.6453,247.61,247.58,6.04091879]
[1737792331450,8.7653,247.61,247.58,6.04091879]
[1737792331659,4.0394,247.6,247.58,6.04091879]
[1737792331848,8.7653,247.61,247.58,6.04091879]
[1737792332053,8.7653,247.61,247.6,6.04091879]
[1737792332249,8.7653,247.61,247.57,0.02573172]
[1737792332454,14.80621879,247.61,247.57,0.02573172]
[1737792332652,4.0396,247.58,247.57,0.02573172]
[1737792333059,14.80621879,247.61,247.53,6.04091879]
[1737792334052,14.80621879,247.61,247.55,0.02746643]
[1737792334250,4.0399,247.57,247.55,0.02746643]
[1737792335559,49.97879331,247.67,247.55,0.02746643]
[1737792335757,0.40478261,247.6,247.55,0.02746643]
[1737792336558,4.0399,247.57,247.55,0.02746643]
[1737792337360,4.69704146,247.6,247.55,0.02746643]
[1737792337560,4.69704146,247.6,247.55,6.06838522]
[1737792338160,4.69704146,247.6,247.57,6.04091879]
[1737792338461,4.69704146,247.6,247.59,6.04091879]
[1737792340155,6.04091879,247.74,247.59,8.60091879]
[1737792340358,6.04091879,247.74,247.66,6.04091879]
[1737792341262,6.04091879,247.74,247.68,0.02873507]
[1737792341456,9.74091879,247.74,247.68,0.02873507]
[1737792342161,4.0378,247.7,247.68,0.02873507]
[1737792343662,9.74091879,247.74,247.68,6.06965386]
[1737792343663,4.0375,247.72,247.68,6.06965386]
[1737792343860,4.0375,247.72,247.7,6.04091879]
[1737792348168,3.7,247.74,247.7,6.04091879]
[1737792348367,7.7371,247.74,247.72,6.04091879]
[1737792349666,3.7,247.74,247.72,6.04091879]
[1737792350169,3.7,247.74,247.73,2.56]
[1737792350467,4.036,247.81,247.73,2.56]
[1737792350667,4.036,247.81,247.79,6.04091879]
[1737792351968,4.61,247.82,247.79,6.04091879]
[1737792352563,4.61,247.82,247.76,6.04091879]
[1737792352766,4.0364,247.78,247.76,6.04091879]
[1737792357070,4.0362,247.8,247.76,6.04091879]
[1737792357271,4.0362,247.8,247.79,6.04091879]
[1737792357772,4.61,247.82,247.79,6.04091879]
[1737792357972,4.61,247.82,247.81,6.04091879]
[1737792366678,10.05371879,247.92,247.81,6.04091879]
[1737792366881,10.05371879,247.92,247.85,6.04091879]
[1737792367873,15.32371879,247.92,247.85,6.04091879]
[1737792369478,9.2828,247.92,247.85,6.04091879]
[1737792369683,9.2828,247.92,247.87,6.04091879]
[1737792370083,7.895,247.92,247.87,6.04091879]
[1737792370284,5.27,247.92,247.89,6.04091879]
[1737792370588,5.27,247.92,247.9,4.0343]
[1737792370981,5.27,247.92,247.89,6.04091879]
[1737792372188,5.27,247.92,247.91,6.04091879]
[1737792373185,6.04091879,248.08,247.91,6.04091879]
[1737792373386,193.0,248.17,247.84,2.56]
[1737792373387,2.6361,248.11,248.03,6.04091879]
[1737792373883,2.6361,248.11,248.05,0.03045488]
[1737792374391,7.0661,248.11,248.05,0.03045488]
[1737792374683,7.0661,248.11,248.08,6.04091879]
[1737792375094,7.0661,248.11,248.09,4.0313]
[1737792375383,4.43,248.11,248.1,6.04091879]
[1737792378286,6.04091879,248.23,248.1,6.04091879]
[1737792378493,2.5609,248.24,248.16,10.07091879]
[1737792379288,2.5609,248.24,248.18,10.07071879]
[1737792379588,4.41,248.24,248.18,6.04091879]
[1737792379791,4.41,248.24,248.16,9.34743118]
[1737792381794,4.41,248.24,248.22,4.0292]
[1737792383695,4.41,248.24,248.21,4.05975471]
[1737792383990,4.41,248.24,248.21,0.03045471]
[1737792384391,4.41,248.24,248.22,4.0292]
[1737792388899,1.3717,248.36,248.21,9.37788589]
[1737792389087,1.3717,248.36,248.28,9.34743118]
[1737792389292,1.3717,248.36,248.33,4.0274]
[1737792389492,1.3855,248.37,248.33,4.0274]
[1737792389899,1.3809,248.44,248.33,4.0274]
[1737792390099,5.4,248.37,248.33,4.0274]
[1737792390494,5.4,248.37,248.32,0.02574633]
[1737792390696,5.4,248.37,248.34,4.0272]
[1737792391097,5.4,248.37,248.32,0.02574633]
[1737792391098,5.4,248.37,248.32,9.37317751]
[1737792391494,5.4,248.37,248.35,4.027]
[1737792394002,5.4,248.37,248.36,9.34743118]
[1737792399401,121.96346869,248.45,248.36,9.34743118]
[1737792399802,121.96346869,248.45,248.38,0.02600388]
[1737792400500,126.46346869,248.45,248.38,0.02600388]
[1737792401005,126.46346869,248.45,248.32,9.34743118]
[1737792401703,5.97537276,248.42,248.34,5.97537276]
[1737792402002,0.02647714,248.4,248.36,0.02753832]
[1737792403099,0.02647714,248.4,248.37,4.0267]
[1737792403405,0.02647714,248.4,248.36,0.02753832]
[1737792404707,0.02647714,248.4,248.36,4.05443832]
[1737792405507,0.02647714,248.4,248.34,4.0272]
[1737792405706,0.02647714,248.4,248.26,9.3373639]
[1737792405912,9.3373639,248.39,248.24,2.58]
[1737792406111,1.3272,248.38,248.23,9.3373639]
[1737792406305,1.3272,248.38,248.26,9.3373639]
[1737792406611,1.3272,248.38,248.29,9.3373639]
[1737792406811,0.03102272,248.34,248.3,0.02778698]
[1737792407315,0.03102272,248.34,248.31,4.0277]
[1737792407513,0.03102272,248.34,248.3,0.02778698]
[1737792408215,0.03102272,248.34,248.32,4.0275]
[1737792410116,0.03102272,248.34,248.31,4.0277]
[1737792412009,0.03102272,248.34,248.32,4.0276]
[1737792412818,0.03102272,248.34,248.31,4.0276]
[1737792413322,0.03102272,248.34,248.3,0.02778698]
[1737792414116,0.03102272,248.34,248.32,4.0276]
[1737792417618,0.03102272,248.34,248.33,4.0274]
[1737792421012,0.03102272,248.34,248.3,0.02778698]
[1737792421723,0.03102272,248.34,248.32,4.0276]
[1737792428830,4.51102272,248.34,248.32,4.0276]
[1737792429218,4.51102272,248.34,248.33,5.97638469]
[1737792430522,5.97638469,248.45,248.33,5.97638469]
[1737792430722,5.97638469,248.45,248.37,5.97638469]
[1737792431728,0.02633319,248.43,248.39,0.02543545]
[1737792432330,6.00271788,248.43,248.39,0.02543545]
[1737792436327,0.02633319,248.43,248.39,0.02543545]
[1737792436523,0.02633319,248.43,248.41,4.0261]
[1737792436729,0.02633319,248.43,248.39,0.02543545]
[1737792437528,0.02633319,248.43,248.41,4.026]
[1737792437727,0.02633319,248.43,248.41,10.00238469]
[1737792444940,0.02633319,248.43,248.41,5.97638469]
[1737792445345,0.02633319,248.43,248.39,6.00182014]
[1737792445637,0.02633319,248.43,248.39,0.02543545]
[1737792446639,0.02633319,248.43,248.39,6.00182014]
[1737792447641,5.97638469,248.41,248.33,10.00378469]
[1737792447940,1.3959,248.4,248.33,10.00378469]
[1737792448632,0.02894354,248.39,248.34,0.03004832]
[1737792449037,0.02894354,248.39,248.35,10.00348469]
[1737792449241,0.02894354,248.39,248.37,5.97638469]
[1737792449541,0.02894354,248.39,248.37,10.00308469]
[1737792452334,0.02894354,248.39,248.37,4.0267]
[1737792453141,0.02894354,248.39,248.34,0.03004832]
[1737792453743,0.02894354,248.39,248.37,4.0267]
[1737792457441,0.02894354,248.39,248.34,0.03004832]
[1737792457743,0.02894354,248.39,248.35,4.027]
[1737792458038,4.60894354,248.39,248.35,4.027]
[1737792458244,14.61182823,248.39,248.34,0.03004832]
[1737792458647,10.58532823,248.39,248.34,0.03004832]
[1737792458842,4.0266,248.38,248.34,0.03004832]
[1737792459747,4.60894354,248.39,248.34,6.00643301]
[1737792459946,4.60894354,248.39,248.36,5.97638469]
[1737792461145,4.60894354,248.39,248.34,6.00643301]
[1737792461345,8.63544354,248.39,248.34,6.00643301]
[1737792464241,4.60894354,248.39,248.37,4.0267]
[1737792464443,4.60894354,248.39,248.34,6.00643301]
[1737792464850,5.97638469,248.36,248.26,5.97638469]
[1737792465144,5.97638469,248.33,248.26,5.97638469]
[1737792465349,10.00388469,248.33,248.26,5.97638469]
[1737792465948,0.02654401,248.32,248.27,0.02965796]
[1737792468251,4.05414401,248.32,248.27,0.02965796]
[1737792470246,10.00458469,248.28,248.27,0.02965796]
[1737792471451,5.97638469,248.28,248.19,5.97638469]
[1737792471651,2.6519,248.34,248.14,160.48464894]
[1737792471652,5.97638469,248.21,248.14,149.88825721]
[1737792471846,5.97638469,248.15,248.14,149.88825721]
[1737792472052,5.97638469,248.17,248.14,149.88825721]
[1737792472252,4.0299,248.18,248.14,9.57381059]
[1737792472452,5.97638469,248.16,248.11,127.98044662]
[1737792472653,5.97638469,248.12,248.11,127.98044662]
[1737792472853,10.00668469,248.16,248.11,128.00792906]
[1737792473052,11.33638469,248.16,248.11,128.00792906]
[1737792473651,5.36,248.16,248.11,128.00792906]
[1737792473853,4.0307,248.14,248.11,128.00792906]
[1737792474053,5.36,248.16,248.11,128.00792906]
[1737792475054,5.36,248.16,248.11,0.02748244]
[1737792475055,4.0305,248.14,248.11,0.02748244]
[1737792476358,5.36,248.16,248.11,0.02748244]
[1737792476552,9.3903,248.16,248.11,0.02748244]
[1737792476853,5.36,248.16,248.11,0.02748244]
[1737792478756,5.36,248.16,248.12,4.0308]
[1737792479055,5.36,248.16,248.12,11.99626071]
[1737792479261,5.36,248.16,248.14,4.0305]
[1737792479757,5.36,248.16,248.12,11.99626071]
[1737792480056,5.36,248.16,248.12,16.02696071]
[1737792480956,5.36,248.16,248.13,4.0306]
[1737792481163,5.36,248.16,248.15,9.35626071]
[1737792481356,1.3496,248.3,248.15,9.35626071]
[1737792482055,4.0285,248.27,248.16,4.0302]
[1737792482359,4.0285,248.27,248.15,9.35626071]
[1737792482558,0.02757869,248.24,248.19,0.02957304]
[1737792487265,0.02757869,248.24,248.21,9.35626071]
[1737792487664,0.02757869,248.24,248.22,4.0292]
[1737792489267,0.02757869,248.24,248.21,9.35626071]
[1737792490763,0.02757869,248.24,248.22,4.0292]
[1737792490958,4.87,248.27,248.21,9.35626071]
[1737792491166,4.87,248.27,248.24,9.35626071]
[1737792491367,1.2757,248.38,248.24,9.35626071]
[1737792491571,1.2757,248.38,248.27,9.35626071]
[1737792491963,4.0264,248.4,248.3,4.0279]
[1737792492167,0.0265932,248.35,248.3,0.02646289]
[1737792492568,5.5565932,248.35,248.3,0.02646289]
[1737792495969,5.5565932,248.35,248.3,4.05436289]
[1737792496861,5.5565932,248.35,248.3,0.02646289]
[1737792497770,11.53445577,248.35,248.3,0.02646289]
[1737792498769,5.5565932,248.35,248.3,0.02646289]
[1737792499269,5.5565932,248.35,248.27,2.62]
[1737792499270,5.5565932,248.35,248.31,5.97786257]
[1737792500365,5.5565932,248.35,248.31,6.00632912]
[1737792501668,5.5565932,248.35,248.31,0.02846655]
[1737792502168,5.5565932,248.35,248.31,4.05616655]
[1737792502972,5.5565932,248.35,248.32,4.0276]
[1737792503368,5.5565932,248.35,248.31,0.02846655]
[1737792503569,5.5565932,248.35,248.33,4.0274]
[1737792504865,5.5565932,248.35,248.34,4.0273]
[1737792505068,5.53,248.35,248.34,4.0273]
[1737792505371,9.33741415,248.49,248.36,4.0269]
[1737792505971,9.33741415,248.49,248.34,9.33741415]
[1737792506372,0.02916984,248.44,248.39,0.0290084]
[1737792507069,0.02916984,248.44,248.39,2.6490084]
[1737792507273,4.48,248.49,248.43,9.33741415]
[1737792507471,4.48,248.49,248.46,9.33741415]
[1737792508173,4.48,248.49,248.47,4.0251]
[1737792508368,2.65723775,248.49,248.47,4.0251]
[1737792509271,4.0229,248.61,248.46,9.33741415]
[1737792509474,11.93151415,248.61,248.46,9.33741415]
[1737792509774,4.0235,248.58,248.46,13.36261415]
[1737792509975,11.93151415,248.61,248.46,9.33741415]
[1737792510176,9.33741415,248.58,248.44,2.62]
[1737792510371,14.40741415,248.58,248.51,0.0283972]
[1737792510877,4.0236,248.57,248.51,0.0283972]
[1737792512377,5.07,248.58,248.51,0.0283972]
[1737792513277,5.07,248.58,248.51,4.0528972]
[1737792513973,5.07,248.58,248.55,4.0238]
[1737792514279,5.07,248.58,248.54,9.33741415]
[1737792516278,5.07,248.58,248.54,13.36131415]
[1737792516975,5.07,248.58,248.57,9.33741415]
[1737792519775,5.07,248.58,248.54,9.33741415]
[1737792519974,5.07,248.58,248.51,11.98581135]
[1737792521076,5.07,248.58,248.51,9.36581135]
[1737792521281,5.07,248.58,248.51,0.0283972]
[1737792522479,4.024,248.54,248.51,0.0283972]
[1737792522979,4.0238,248.56,248.51,0.0283972]
[1737792523179,5.07,248.58,248.51,0.0283972]
[1737792524080,4.0239,248.55,248.51,0.0283972]
[1737792526083,4.0237,248.57,248.51,0.0283972]
[1737792526283,5.07,248.58,248.51,0.0283972]
[1737792527085,4.0238,248.56,248.51,0.0283972]
[1737792528686,5.07,248.58,248.51,0.0283972]
[1737792528888,5.07,248.58,248.51,9.36581135]
[1737792529189,5.07,248.58,248.57,9.33741415]
[1737792529389,4.0551,248.65,248.57,9.33741415]
[1737792529591,36.25023668,248.72,248.6,9.33741415]
[1737792530190,4.0216,248.69,248.61,4.0229]
[1737792530387,36.25023668,248.72,248.6,9.33741415]
[1737792530588,42.54023668,248.72,248.63,0.02692899]
[1737792530783,4.0216,248.69,248.63,0.02692899]
[1737792531087,3.9778,248.74,248.63,0.02692899]
[1737792531691,4.0215,248.7,248.63,0.02692899]
[1737792532785,4.0213,248.71,248.63,0.02692899]
[1737792534199,4.0213,248.71,248.63,4.04942899]
[1737792535495,10.0213,248.71,248.63,4.04942899]
[1737792536897,6.0,248.71,248.63,4.04942899]
[1737792537093,4.0223,248.65,248.63,0.02692899]
[1737792538097,4.0221,248.67,248.63,0.02692899]
[1737792539100,6.0,248.71,248.63,9.36434314]
[1737792539300,4.0215,248.7,248.63,9.36434314]
[1737792539797,6.0,248.71,248.63,9.36434314]
[1737792539990,4.0217,248.69,248.63,9.33741415]
[1737792541200,4.0217,248.69,248.64,0.02663656]
[1737792541201,0.02692899,248.68,248.64,0.02663656]
[1737792542705,4.04872899,248.68,248.64,0.02663656]
[1737792543094,0.02692899,248.68,248.64,0.02663656]
[1737792543297,4.0221,248.66,248.64,0.02663656]
[1737792543702,4.0221,248.66,248.64,5.98775315]
[1737792543904,0.02692899,248.68,248.64,5.98775315]
[1737792544707,0.02692899,248.68,248.66,5.96111659]
[1737792551096,0.02692899,248.68,248.66,9.98311659]
[1737792551300,6.0,248.71,248.7,5.96111659]
[1737792554205,1.277,248.78,248.7,5.96111659]
[1737792554507,5.96111659,248.85,248.76,5.96111659]
[1737792554701,4.0198,248.81,248.76,5.96111659]
[1737792554910,4.0198,248.81,248.78,0.02681519]
[1737792555404,5.96111659,248.83,248.78,0.02681519]
[1737792555606,10.54111659,248.81,248.72,5.96111659]
[1737792556002,4.0204,248.77,248.72,5.96111659]
[1737792556598,4.0205,248.76,248.72,5.98819786]
[1737792556802,0.02681519,248.77,248.72,0.02708127]
[1737792557209,4.0207,248.75,248.72,0.02708127]
[1737792557507,0.02681519,248.77,248.72,0.02708127]
[1737792558004,4.0208,248.74,248.72,0.02708127]
[1737792558207,5.96111659,248.74,248.66,5.96111659]
[1737792558505,1.3272,248.73,248.66,5.96111659]
[1737792559203,4.0212,248.72,248.66,5.96111659]
[1737792559403,4.05030801,248.72,248.68,5.96111659]
[1737792559809,4.05030801,248.72,248.67,0.0271616]
[1737792560910,0.02910801,248.72,248.67,0.0271616]
[1737792562412,0.02910801,248.72,248.67,4.0490616]
[1737792562808,0.02910801,248.72,248.67,0.0271616]
[1737792564313,4.05020801,248.72,248.67,0.0271616]
[1737792565916,4.0216,248.69,248.67,0.0271616]
[1737792566911,4.0215,248.7,248.67,0.0271616]
[1737792567613,4.0217,248.69,248.67,0.0271616]
[1737792567816,0.02910801,248.72,248.61,2.6]
[1737792568113,4.0219,248.68,248.61,2.6]
[1737792568317,1.3272,248.73,248.61,11.91119164]
[1737792568817,0.02929893,248.69,248.65,0.02599115]
[1737792572223,4.05089893,248.69,248.65,0.02599115]
[1737792574722,0.02929893,248.69,248.65,0.02599115]
[1737792575723,5.56929893,248.69,248.65,0.02599115]
[1737792576721,9.59109893,248.69,248.65,0.02599115]
[1737792577220,9.31119164,248.85,248.65,9.33718279]
[1737792577421,4.0191,248.85,248.75,4.0205]
[1737792578124,4.0196,248.82,248.72,11.95119164]
[1737792578524,0.02834942,248.79,248.75,0.02846919]
[1737792581726,0.02834942,248.79,248.77,5.9544252]
[1737792584931,0.02834942,248.79,248.77,9.9747252]
[1737792586030,0.02834942,248.79,248.77,5.9544252]
[1737792587932,5.13,248.82,248.79,4.0199]
[1737792588233,5.13,248.82,248.76,5.9544252]
[1737792588734,5.13,248.82,248.78,5.9544252]
[1737792588933,5.13,248.82,248.75,0.02846919]
[1737792589238,5.9544252,248.78,248.68,5.9544252]
[1737792589430,5.9544252,248.76,248.68,5.9544252]
[1737792589834,4.021,248.73,248.68,5.9544252]
[1737792590435,4.04841751,248.73,248.68,5.98062294]
[1737792591935,0.02741751,248.73,248.68,5.98062294]
[1737792593232,4.04841751,248.73,248.68,0.02619774]
[1737792593938,0.02741751,248.73,248.68,0.02619774]
[1737792594137,4.0214,248.71,248.68,0.02619774]
[1737792594733,10.00294271,248.73,248.68,0.02619774]
[1737792594938,5.98184271,248.73,248.68,0.02619774]
[1737792595434,4.0212,248.72,248.68,0.02619774]
[1737792595939,5.98184271,248.73,248.68,0.02619774]
[1737792596134,0.02741751,248.73,248.68,0.02619774]
[1737792596437,4.04841751,248.73,248.68,0.02619774]
[1737792597733,0.02741751,248.73,248.68,0.02619774]
[1737792598037,4.0214,248.71,248.68,0.02619774]
[1737792599545,4.0215,248.7,248.68,0.02619774]
[1737792600042,4.14741751,248.73,248.68,0.02619774]